fUST/lending_fUST_20250720
["ID","MTS","AMOUNT","RATE_DAILY","PERIOD"]
[373489707,1753021580443,-198.81543304,0.00015286,2]
[373489708,1753021581880,-244.60329425,0.00015286,2]
[373489710,1753021584447,-190.73656462,0.00015286,2]
[373489711,1753021587660,-223.08593214,0.00015286,2]
[373489714,1753021590265,-242.13978212,0.00015286,2]
[373489715,1753021592080,-330.36383892,0.00015286,2]
[373489716,1753021594722,-244.22789852,0.00015286,2]
[373489717,1753021596378,-179.76055241,0.00015286,2]
[373489718,1753021599444,-293.15608321,0.00015286,2]
[373489719,1753021602052,-271.28239454,0.00015286,2]
[373489720,1753021603567,-176.0895589,0.00015286,2]
[373489721,1753021605710,-348.78861221,0.00015286,2]
[373489722,1753021609366,-184.69572399,0.00015239,2]
[373489723,1753021610915,-244.23251142,0.00015239,2]
[373489724,1753021612434,-172.3009407,0.00015239,2]
[373489725,1753021615643,-300.0,0.00015239,2]
[373489726,1753021617766,-266.07867593,0.00015239,2]
[373489727,1753021620449,-178.7529694,0.00015239,2]
[373489728,1753021622710,-334.63948885,0.00015239,2]
[373489729,1753021624665,-290.87262399,0.00015239,2]
[373489732,1753021628018,-155.55550231,0.00015239,2]
[373489733,1753021630372,-404.31297466,0.00015239,2]
[373489734,1753021631918,-296.16804389,0.00015239,2]
[373489735,1753021634439,-219.98056246,0.00015239,2]
[373489736,1753021636003,-222.06400111,0.00015239,2]
[373489737,1753021639681,-173.15308942,0.00015239,2]
[373489738,1753021641375,-189.42801346,0.00015239,2]
[373489739,1753021643401,-200.66287179,0.00015239,2]
[373489740,1753021645472,-275.72068391,0.00015239,2]
[373489741,1753021646948,-281.67011792,0.00015239,2]
[373489742,1753021649002,-277.06946057,0.00015239,2]
[373489743,1753021651072,-194.35291794,0.00015239,2]
[373489744,1753021654899,-328.56574889,0.00015239,2]
[373489745,1753021657373,-264.72759314,0.00015239,2]
[373489746,1753021658923,-4544.99548425,0.00015239,2]
[373489747,1753021658954,-1050.04868823,0.00015286,2]
[373489748,1753021658987,-300.0,0.00015735,2]
[373489749,1753021659022,-3209.91165504,0.00015736,2]
[373489750,1753021659284,-1790.08834496,0.00015736,2]
[373489751,1753021659320,-509.95262497,0.00015798,2]
[373489752,1753021659352,-255.0,0.00016159,2]
[373489753,1753021678243,5000.0,0.000162,2]
[373489755,1753021694183,5000.0,0.000162,2]
[373489759,1753021696117,414.73655073,0.00010618,2]
[373489760,1753021697917,4475.18150941,0.000125,2]
[373489761,1753021697944,6896.33522934,0.000125,2]
[373489762,1753021709552,277.57069911,0.00014114,2]
[373489763,1753021710055,5000.0,0.000162,2]
[373489764,1753021711462,282.41506411,0.0001,2]
[373489766,1753021715044,7543.67900744,0.00015333,2]
[373489767,1753021715070,20000.0,0.00015333,2]
[373489768,1753021715097,13447.89148556,0.00015333,2]
[373489770,1753021721372,580.17811572,0.000149,2]
[373489772,1753021721531,1000.0,0.0001,2]
[373489773,1753021724908,4971.93039872,0.00015,2]
[373489774,1753021724935,11028.06960128,0.00015,2]
[373489775,1753021725751,210.55442073,0.00016,2]
[373489777,1753021727113,5507.53541507,0.0001,2]
[373489778,1753021728161,3253.84056292,0.000162,2]
[373489779,1753021728192,1746.15943708,0.000162,2]
[373489780,1753021737046,155.83281161,0.00015732,2]
[373489781,1753021743577,5000.0,0.000162,2]
[373489898,1753021759949,5000.0,0.000162,2]
[373489900,1753021776336,5000.0,0.000162,2]
[373489903,1753021793135,3098.00775131,0.000162,2]
[373489904,1753021793162,1901.99224869,0.000162,2]
[373489905,1753021796044,164.421142,0.0001575,2]
[373489906,1753021796374,325.75152897,0.00015838,2]
[373489908,1753021808967,5000.0,0.000162,2]
[373490042,1753021824347,5000.0,0.000162,2]
[373490148,1753021832681,-2148.8444408,0.00016237,2]
[373490149,1753021832690,-1277.52835887,0.00016287,2]
[373490150,1753021832700,-300.0,0.00016327,2]
[373490151,1753021832711,-229.0,0.00016327,2]
[373490152,1753021832721,-5100.29230092,0.00016328,2]
[373490153,1753021832730,-1224.51,0.00016328,3]
[373490154,1753021832740,-612.26,0.00016328,3]
[373490155,1753021832750,-306.13,0.00016328,3]
[373490156,1753021832759,-153.06,0.00016328,3]
[373490157,1753021832769,-459.23,0.00016328,3]
[373490158,1753021832779,-366.17907215,0.00016337,2]
[373490159,1753021832788,-500.0,0.00016337,2]
[373490160,1753021832798,-500.0,0.00016337,2]
[373490161,1753021832808,-357.83454597,0.00016337,2]
[373490162,1753021832821,-142.16545403,0.00016337,2]
[373490163,1753021832831,-200.0,0.00016337,2]
[373490164,1753021832840,-374.25709612,0.00016337,2]
[373490165,1753021832852,-125.74290388,0.00016337,2]
[373490166,1753021832862,-500.0,0.00016337,2]
[373490167,1753021832871,-253.15709612,0.00016337,2]
[373490168,1753021833830,-246.84290388,0.00016337,2]
[373490169,1753021833840,-500.0,0.00016337,2]
[373490170,1753021833849,-500.0,0.00016337,2]
[373490171,1753021833859,-500.0,0.00016337,2]
[373490172,1753021833868,-500.0,0.00016337,2]
[373490173,1753021833878,-500.0,0.00016337,2]
[373490174,1753021833887,-500.0,0.00016337,2]
[373490175,1753021833897,-500.0,0.00016337,2]
[373490176,1753021833906,-500.0,0.00016337,2]
[373490177,1753021833915,-500.0,0.00016337,2]
[373490178,1753021833925,-399.92987286,0.00016337,2]
[373490179,1753021833935,-500.0,0.00016337,2]
[373490180,1753021833944,-345.2292343,0.00016337,2]
[373490181,1753021833957,-154.7707657,0.00016337,2]
[373490182,1753021833968,-500.0,0.00016337,2]
[373490184,1753021833977,-644.53495823,0.00016337,2]
[373490185,1753021833986,-500.0,0.00016337,2]
[373490186,1753021833996,-500.0,0.00016337,2]
[373490187,1753021834005,-500.0,0.00016337,2]
[373490188,1753021834015,-379.74626761,0.00016337,2]
[373490189,1753021834025,-450.0,0.00016337,2]
[373490190,1753021834034,-500.0,0.00016337,2]
[373490191,1753021834045,-500.0,0.00016337,2]
[373490192,1753021834057,-500.0,0.00016337,2]
[373490193,1753021834067,-500.0,0.00016337,2]
[373490194,1753021834077,-500.0,0.00016337,2]
[373490195,1753021834087,-500.0,0.00016337,2]
[373490196,1753021834098,-500.0,0.00016337,2]
[373490197,1753021834107,-157.76962114,0.00016337,2]
[373490198,1753021834117,-500.0,0.00016337,2]
[373490199,1753021834128,-500.0,0.00016337,2]
[373490200,1753021834137,-500.0,0.00016337,2]
[373490201,1753021834157,-500.0,0.00016337,2]
[373490202,1753021834167,-500.0,0.00016337,2]
[373490203,1753021834177,-500.0,0.00016337,2]
[373490204,1753021834186,-500.0,0.00016337,2]
[373490205,1753021834196,-253.52744852,0.00016337,2]
[373490206,1753021834206,-500.0,0.00016337,2]
[373490207,1753021834217,-500.0,0.00016337,2]
[373490208,1753021834386,-500.0,0.00016337,2]
[373490209,1753021834396,-278.79933207,0.00016337,2]
[373490210,1753021834408,-221.20066793,0.00016337,2]
[373490211,1753021834418,-500.0,0.00016337,2]
[373490212,1753021834427,-526.45505348,0.00016337,2]
[373490213,1753021834437,-500.0,0.00016337,2]
[373490214,1753021834446,-434.36609748,0.00016337,2]
[373490215,1753021834455,-500.0,0.00016337,2]
[373490216,1753021834466,-500.0,0.00016337,2]
[373490217,1753021834475,-500.0,0.00016337,2]
[373490219,1753021834485,-324.39253014,0.00016337,2]
[373490221,1753021834495,-500.0,0.00016337,2]
[373490223,1753021834505,-500.0,0.00016337,2]
[373490224,1753021834514,-500.0,0.00016337,2]
[373490225,1753021834524,-183.76914056,0.00016337,2]
[373490226,1753021834534,-197.92076725,0.00016337,2]
[373490227,1753021834543,-188.74447443,0.00016337,2]
[373490228,1753021834554,-111514.13193139,0.00016338,2]
[373490229,1753021834565,-3979.81693317,0.00016338,2]
[373490495,1753021838564,-398.04150106,0.00016338,2]
[373490546,1753021839050,-3014.98636825,0.00016338,2]
[373490549,1753021839062,-108539.6832838,0.00016338,2]
[373490551,1753021839072,-215.0738,0.00016387,2]
[373490553,1753021839081,-151.0,0.00016387,2]
[373490555,1753021839092,-151.0,0.00016387,2]
[373490557,1753021839101,-151.0,0.00016387,2]
[373490559,1753021839111,-151.0,0.00016387,2]
[373490561,1753021839122,-151.0,0.00016387,2]
[373490563,1753021839132,-151.0,0.00016387,2]
[373490565,1753021839142,-151.0,0.00016387,2]
[373490567,1753021839151,-151.0,0.00016387,2]
[373490569,1753021839160,-151.0,0.00016387,2]
[373490571,1753021839170,-151.0,0.00016387,2]
[373490573,1753021839179,-151.0,0.00016387,2]
[373490575,1753021839188,-151.0,0.00016387,2]
[373490577,1753021839198,-151.0,0.00016387,2]
[373490579,1753021839207,-151.0,0.00016387,2]
[373490581,1753021839223,-151.0,0.00016387,2]
[373490583,1753021839233,-151.0,0.00016387,2]
[373490585,1753021839242,-151.0,0.00016387,2]
[373490587,1753021839253,-151.0,0.00016387,2]
[373490589,1753021839262,-273.04352282,0.00016387,2]
[373490591,1753021839272,-460.0,0.00016438,2]
[373490593,1753021839283,-460.0,0.00016438,2]
[373490595,1753021839293,-460.0,0.00016438,2]
[373490597,1753021839303,-460.0,0.00016438,2]
[373490599,1753021839313,-477.29016809,0.00016438,2]
[373490601,1753021839324,-460.0,0.00016438,2]
[373490603,1753021839333,-460.0,0.00016438,2]
[373490605,1753021839343,-465.31213804,0.00016438,2]
[373490607,1753021839353,-460.0,0.00016438,2]
[373490609,1753021839363,-460.0,0.00016438,2]
[373490611,1753021839372,-460.0,0.00016438,2]
[373490614,1753021839383,-460.0,0.00016438,2]
[373490616,1753021839392,-460.0,0.00016438,2]
[373490618,1753021839402,-460.0,0.00016438,2]
[373490620,1753021839412,-460.0,0.00016438,2]
[373490622,1753021839422,-460.0,0.00016438,2]
[373490624,1753021839432,-460.0,0.00016438,2]
[373490626,1753021839442,-460.0,0.00016438,2]
[373490628,1753021839452,-460.0,0.00016438,2]
[373490630,1753021839462,-460.0,0.00016438,2]
[373490632,1753021839474,-460.0,0.00016438,2]
[373490634,1753021839484,-460.0,0.00016438,2]
[373490636,1753021839494,-460.0,0.00016438,2]
[373490638,1753021839504,-467.49544061,0.00016438,2]
[373490640,1753021839514,-369.62656306,0.00016438,2]
[373490642,1753021839524,-460.0,0.00016438,2]
[373490644,1753021839534,-460.0,0.00016438,2]
[373490646,1753021839543,-460.0,0.00016438,2]
[373490648,1753021839553,-475.41915853,0.00016438,2]
[373490650,1753021839563,-548.83486579,0.00016438,2]
[373490652,1753021839572,-460.98821901,0.00016438,2]
[373490654,1753021839582,-460.0,0.00016438,2]
[373490656,1753021839592,-460.0,0.00016438,2]
[373490658,1753021839602,-460.0,0.00016438,2]
[373490660,1753021839611,-460.0,0.00016438,2]
[373490662,1753021839621,-1000.0,0.00016438,2]
[373490664,1753021839631,-460.0,0.00016438,2]
[373490666,1753021839640,-460.0,0.00016438,2]
[373490668,1753021839649,-460.0,0.00016438,2]
[373490670,1753021839659,-460.0,0.00016438,2]
[373490672,1753021839668,-460.0,0.00016438,2]
[373490674,1753021839679,-460.0,0.00016438,2]
[373490676,1753021839689,-460.0,0.00016438,2]
[373490678,1753021839699,-460.0,0.00016438,2]
[373490680,1753021839709,-460.0,0.00016438,2]
[373490682,1753021839719,-460.0,0.00016438,2]
[373490684,1753021839729,-460.0,0.00016438,2]
[373490686,1753021839739,-460.0,0.00016438,2]
[373490688,1753021839748,-460.0,0.00016438,2]
[373490690,1753021839758,-460.0,0.00016438,2]
[373490692,1753021839767,-460.0,0.00016438,2]
[373490694,1753021839777,-462.94924179,0.00016438,2]
[373490697,1753021839787,-460.0,0.00016438,2]
[373490699,1753021839797,-460.0,0.00016438,2]
[373490701,1753021839806,-460.0,0.00016438,2]
[373490703,1753021839816,-460.0,0.00016438,2]
[373490705,1753021839826,-460.0,0.00016438,2]
[373490707,1753021839836,-460.0,0.00016438,2]
[373490709,1753021839845,-415.59073771,0.00016438,2]
[373490711,1753021839855,-460.0,0.00016438,2]
[373490713,1753021839865,-460.0,0.00016438,2]
[373490715,1753021839875,-460.0,0.00016438,2]
[373490717,1753021839886,-460.0,0.00016438,2]
[373490719,1753021839895,-460.0,0.00016438,2]
[373490721,1753021839905,-460.0,0.00016438,2]
[373490723,1753021839914,-460.0,0.00016438,2]
[373490725,1753021839924,-460.0,0.00016438,2]
[373490728,1753021839934,-460.0,0.00016438,2]
[373490730,1753021839943,-796.04,0.00016438,2]
[373490732,1753021839953,-460.0,0.00016438,2]
[373490733,1753021839962,-460.0,0.00016438,2]
[373490735,1753021839973,-3955.89,0.00016438,2]
[373490737,1753021839983,-460.0,0.00016438,2]
[373490739,1753021839993,-460.0,0.00016438,2]
[373490741,1753021840002,-460.0,0.00016438,2]
[373490744,1753021840013,-460.0,0.00016438,2]
[373490746,1753021840023,-460.0,0.00016438,2]
[373490747,1753021840032,-460.0,0.00016438,2]
[373490750,1753021840042,-460.0,0.00016438,2]
[373490753,1753021840056,-460.0,0.00016438,2]
[373490756,1753021840065,-460.0,0.00016438,2]
[373490758,1753021840075,-270.5954197,0.00016438,2]
[373490760,1753021840084,-460.0,0.00016438,2]
[373490761,1753021840094,-460.0,0.00016438,2]
[373490762,1753021840104,-460.0,0.00016438,2]
[373490763,1753021840114,-460.0,0.00016438,2]
[373490764,1753021840124,-460.0,0.00016438,2]
[373490765,1753021840133,-460.0,0.00016438,2]
[373490768,1753021840143,-596.30646389,0.00016438,2]
[373490771,1753021840152,-460.0,0.00016438,2]
[373490773,1753021840162,-460.0,0.00016438,2]
[373490775,1753021840171,-460.0,0.00016438,2]
[373490777,1753021840181,-460.0,0.00016438,2]
[373490779,1753021840190,-460.0,0.00016438,2]
[373490781,1753021840200,-460.0,0.00016438,2]
[373490783,1753021840210,-1823.23,0.00016438,2]
[373490785,1753021840221,-460.0,0.00016438,2]
[373490787,1753021840230,-460.0,0.00016438,2]
[373490789,1753021840240,-460.0,0.00016438,2]
[373490791,1753021840250,-460.0,0.00016438,2]
[373490793,1753021840260,-460.0,0.00016438,2]
[373490795,1753021840269,-469.84038484,0.00016438,2]
[373490797,1753021840280,-460.0,0.00016438,2]
[373490799,1753021840290,-458.07108097,0.00016438,2]
[373490801,1753021840300,-460.0,0.00016438,2]
[373490804,1753021840311,-460.0,0.00016438,2]
[373490806,1753021840320,-460.0,0.00016438,2]
[373490808,1753021840329,-460.0,0.00016438,2]
[373490810,1753021840339,-460.0,0.00016438,2]
[373490812,1753021840349,-415.75652848,0.00016438,2]
[373490814,1753021840359,-796.05,0.00016438,2]
[373490816,1753021840368,-460.0,0.00016438,2]
[373490818,1753021840378,-460.0,0.00016438,2]
[373490820,1753021840387,-466.99532585,0.00016438,2]
[373490822,1753021840397,-460.0,0.00016438,2]
[373490824,1753021840406,-460.93566341,0.00016438,2]
[373490826,1753021840416,-460.0,0.00016438,2]
[373490828,1753021840426,-460.0,0.00016438,2]
[373490830,1753021840435,-460.0,0.00016438,2]
[373490832,1753021840444,-460.0,0.00016438,2]
[373490834,1753021840454,-460.0,0.00016438,2]
[373490836,1753021840464,-460.0,0.00016438,2]
[373490838,1753021840475,-460.0,0.00016438,2]
[373490840,1753021840484,-460.0,0.00016438,2]
[373490842,1753021840493,-460.0,0.00016438,2]
[373490844,1753021840503,-460.0,0.00016438,2]
[373490846,1753021840512,-461.0,0.00016438,2]
[373490848,1753021840521,-460.0,0.00016438,2]
[373490850,1753021840531,-3230.43,0.00016438,2]
[373490852,1753021840540,-460.0,0.00016438,2]
[373490854,1753021840549,-1296.1,0.00016438,2]
[373490856,1753021840559,-460.0,0.00016438,2]
[373490858,1753021840568,-460.0,0.00016438,2]
[373490860,1753021840578,-460.0,0.00016438,2]
[373490862,1753021840587,-460.0,0.00016438,2]
[373490864,1753021840597,-460.0,0.00016438,2]
[373490866,1753021840606,-500.0,0.00016438,2]
[373490868,1753021840616,-500.0,0.00016438,2]
[373490870,1753021840626,-460.54345259,0.00016438,2]
[373490872,1753021840636,-500.0,0.00016438,2]
[373490874,1753021840645,-460.0,0.00016438,2]
[373490876,1753021840655,-500.0,0.00016438,2]
[373490878,1753021840664,-500.0,0.00016438,2]
[373490880,1753021840674,-460.0,0.00016438,2]
[373490882,1753021840683,-462.09470618,0.00016438,2]
[373490884,1753021840693,-198.51874405,0.00016438,2]
[373490886,1753021840702,-460.31694261,0.00016438,2]
[373490888,1753021840711,-460.0,0.00016438,2]
[373490890,1753021840722,-500.0,0.00016438,2]
[373490892,1753021840732,-500.0,0.00016438,2]
[373490894,1753021840741,-460.0,0.00016438,2]
[373490896,1753021840751,-460.0,0.00016438,2]
[373490898,1753021840760,-462.29428087,0.00016438,2]
[373490900,1753021840770,-460.0,0.00016438,2]
[373490902,1753021840779,-220.00817954,0.00016438,2]
[373490905,1753021840789,-460.0,0.00016438,2]
[373490907,1753021840798,-460.0,0.00016438,2]
[373490909,1753021840807,-460.0,0.00016438,2]
[373490911,1753021840816,-461.85552712,0.00016438,2]
[373490913,1753021840826,-462.11288039,0.00016438,2]
[373490914,1753021840835,-460.0,0.00016438,2]
[373490917,1753021840845,-460.0,0.00016438,2]
[373490919,1753021840854,-460.0,0.00016438,2]
[373490921,1753021840864,-460.0,0.00016438,2]
[373490923,1753021840873,-460.0,0.00016438,2]
[373490925,1753021840882,-1251.21,0.00016438,2]
[373490927,1753021840892,-469.86368413,0.00016438,2]
[373490929,1753021840904,-460.0,0.00016438,2]
[373490931,1753021840913,-460.0,0.00016438,2]
[373490933,1753021840923,-460.0,0.00016438,2]
[373490935,1753021840933,-460.0,0.00016438,2]
[373490937,1753021840943,-460.0,0.00016438,2]
[373490939,1753021840953,-460.0,0.00016438,2]
[373490941,1753021840962,-460.0,0.00016438,2]
[373490943,1753021840973,-500.0,0.00016438,2]
[373490945,1753021840983,-460.0,0.00016438,2]
[373490947,1753021840993,-460.0,0.00016438,2]
[373490949,1753021841002,-460.0,0.00016438,2]
[373490951,1753021841012,-460.0,0.00016438,2]
[373490953,1753021841021,-460.0,0.00016438,2]
[373490955,1753021841031,-460.0,0.00016438,2]
[373490957,1753021841040,-460.0,0.00016438,2]
[373490959,1753021841054,-460.0,0.00016438,2]
[373490962,1753021841063,-460.0,0.00016438,2]
[373490963,1753021841072,-460.0,0.00016438,2]
[373490965,1753021841082,-460.0,0.00016438,2]
[373490968,1753021841093,-1244.55,0.00016438,2]
[373490970,1753021841102,-216.40134364,0.00016438,2]
[373490972,1753021841112,-460.0,0.00016438,2]
[373490974,1753021841122,-460.0,0.00016438,2]
[373490976,1753021841132,-460.0,0.00016438,2]
[373490978,1753021841142,-460.0,0.00016438,2]
[373490980,1753021841151,-460.0,0.00016438,2]
[373490982,1753021841160,-460.0,0.00016438,2]
[373490984,1753021841169,-2118.56,0.00016438,2]
[373490986,1753021841179,-460.0,0.00016438,2]
[373490988,1753021841189,-460.0,0.00016438,2]
[373490990,1753021841198,-460.0,0.00016438,2]
[373490992,1753021841208,-460.0,0.00016438,2]
[373490994,1753021841218,-460.0,0.00016438,2]
[373490996,1753021841227,-460.0,0.00016438,2]
[373490998,1753021841237,-569.87,0.00016438,2]
[373491000,1753021841246,-460.0,0.00016438,2]
[373491002,1753021841255,-460.0,0.00016438,2]
[373491004,1753021841265,-414.46696423,0.00016438,2]
[373491006,1753021841274,-460.0,0.00016438,2]
[373491008,1753021841283,-2352.75,0.00016438,2]
[373491010,1753021841292,-460.0,0.00016438,2]
[373491012,1753021841301,-460.0,0.00016438,2]
[373491014,1753021841311,-460.0,0.00016438,2]
[373491016,1753021841320,-460.0,0.00016438,2]
[373491018,1753021841329,-464.87267364,0.00016438,2]
[373491020,1753021841338,-460.0,0.00016438,2]
[373491022,1753021841348,-460.0,0.00016438,2]
[373491024,1753021841358,-460.0,0.00016438,2]
[373491026,1753021841368,-460.0,0.00016438,2]
[373491028,1753021841378,-745.04,0.00016438,2]
[373491030,1753021841388,-460.0,0.00016438,2]
[373491032,1753021841397,-472.49,0.00016438,2]
[373491034,1753021841407,-460.0,0.00016438,2]
[373491036,1753021841416,-460.0,0.00016438,2]
[373491038,1753021841426,-460.0,0.00016438,2]
[373491040,1753021841435,-460.0,0.00016438,2]
[373491042,1753021841445,-460.0,0.00016438,2]
[373491044,1753021841454,-460.0,0.00016438,2]
[373491046,1753021841463,-460.0,0.00016438,2]
[373491048,1753021841476,-460.0,0.00016438,2]
[373491050,1753021841486,-460.0,0.00016438,2]
[373491053,1753021841495,-1885.51,0.00016438,2]
[373491055,1753021841505,-460.0,0.00016438,2]
[373491057,1753021841515,-460.0,0.00016438,2]
[373491058,1753021841525,-460.0,0.00016438,2]
[373491061,1753021841534,-460.0,0.00016438,2]
[373491063,1753021841544,-460.0,0.00016438,2]
[373491065,1753021841553,-460.0,0.00016438,2]
[373491067,1753021841563,-881.77,0.00016438,2]
[373491068,1753021841572,-539.85793514,0.00016438,2]
[373491070,1753021841582,-460.0,0.00016438,2]
[373491073,1753021841591,-462.52691973,0.00016438,2]
[373491090,1753021841747,-460.0,0.00016438,2]
[373491092,1753021841758,-460.0,0.00016438,2]
[373491094,1753021841768,-460.0,0.00016438,2]
[373491096,1753021841778,-460.0,0.00016438,2]
[373491098,1753021841788,-460.0,0.00016438,2]
[373491100,1753021841798,-460.0,0.00016438,2]
[373491102,1753021841807,-409.10089809,0.00016438,2]
[373491104,1753021841816,-460.0,0.00016438,2]
[373491106,1753021841826,-460.0,0.00016438,2]
[373491108,1753021841835,-460.0,0.00016438,2]
[373491110,1753021841844,-460.0,0.00016438,2]
[373491112,1753021841854,-460.0,0.00016438,2]
[373491114,1753021841863,-460.0,0.00016438,2]
[373491116,1753021841872,-460.0,0.00016438,2]
[373491118,1753021841883,-460.0,0.00016438,2]
[373491120,1753021841892,-460.0,0.00016438,2]
[373491122,1753021841902,-460.0,0.00016438,2]
[373491124,1753021841911,-460.0,0.00016438,2]
[373491126,1753021841920,-1238.54,0.00016438,2]
[373491128,1753021841930,-532.20481744,0.00016438,2]
[373491130,1753021841939,-460.0,0.00016438,2]
[373491132,1753021841949,-460.0,0.00016438,2]
[373491134,1753021841958,-460.0,0.00016438,2]
[373491136,1753021841968,-460.0,0.00016438,2]
[373491138,1753021841978,-460.0,0.00016438,2]
[373491140,1753021841987,-461.48908098,0.00016438,2]
[373491142,1753021841997,-460.0,0.00016438,2]
[373491144,1753021842006,-2303.99,0.00016438,2]
[373491146,1753021842015,-460.0,0.00016438,2]
[373491148,1753021842025,-570.6,0.00016438,2]
[373491150,1753021842034,-544.0514008,0.00016438,2]
[373491152,1753021842044,-481.00048159,0.00016438,2]
[373491154,1753021842057,-460.0,0.00016438,2]
[373491156,1753021842067,-481.67,0.00016438,2]
[373491158,1753021842078,-460.0,0.00016438,2]
[373491160,1753021842087,-497.66,0.00016438,2]
[373491162,1753021842098,-631.63,0.00016438,2]
[373491164,1753021842108,-460.0,0.00016438,2]
[373491166,1753021842117,-460.0,0.00016438,2]
[373491168,1753021842127,-485.45,0.00016438,2]
[373491169,1753021842137,-460.0,0.00016438,2]
[373491170,1753021842146,-460.0,0.00016438,2]
[373491171,1753021842155,-460.0,0.00016438,2]
[373491172,1753021842164,-460.0,0.00016438,2]
[373491173,1753021842174,-460.99371662,0.00016438,2]
[373491174,1753021842183,-460.0,0.00016438,2]
[373491175,1753021842193,-460.0,0.00016438,2]
[373491176,1753021842202,-460.0,0.00016438,2]
[373491177,1753021842211,-460.0,0.00016438,2]
[373491178,1753021842222,-500.0,0.00016438,2]
[373491179,1753021842232,-500.0,0.00016438,2]
[373491180,1753021842241,-460.0,0.00016438,2]
[373491181,1753021842251,-1438.23,0.00016438,2]
[373491182,1753021842260,-500.0,0.00016438,2]
[373491183,1753021842270,-500.0,0.00016438,2]
[373491184,1753021842279,-500.0,0.00016438,2]
[373491185,1753021842288,-542.2,0.00016438,2]
[373491186,1753021842298,-460.0,0.00016438,2]
[373491187,1753021842308,-460.0,0.00016438,2]
[373491188,1753021842317,-512.76,0.00016438,2]
[373491189,1753021842326,-460.0,0.00016438,2]
[373491190,1753021842336,-460.0,0.00016438,2]
[373491191,1753021842345,-460.0,0.00016438,2]
[373491192,1753021842355,-460.0,0.00016438,2]
[373491193,1753021842364,-460.0,0.00016438,2]
[373491194,1753021842374,-460.0,0.00016438,2]
[373491195,1753021842383,-461.60393808,0.00016438,2]
[373491196,1753021842393,-460.0,0.00016438,2]
[373491197,1753021842403,-460.0,0.00016438,2]
[373491198,1753021842413,-1959.4,0.00016438,2]
[373491199,1753021842423,-460.0,0.00016438,2]
[373491200,1753021842432,-423.89659805,0.00016438,2]
[373491201,1753021842441,-460.0,0.00016438,2]
[373491202,1753021842450,-618.55,0.00016438,2]
[373491203,1753021842460,-460.0,0.00016438,2]
[373491204,1753021842470,-506.28923426,0.00016438,2]
[373491205,1753021842480,-460.0,0.00016438,2]
[373491206,1753021842489,-460.0,0.00016438,2]
[373491207,1753021842499,-507.14,0.00016438,2]
[373491208,1753021842508,-460.0,0.00016438,2]
[373491209,1753021842518,-460.73900236,0.00016438,2]
[373491210,1753021842527,-460.0,0.00016438,2]
[373491212,1753021842537,-460.0,0.00016438,2]
[373491213,1753021842546,-460.0,0.00016438,2]
[373491215,1753021842557,-460.0,0.00016438,2]
[373491217,1753021842566,-460.0,0.00016438,2]
[373491219,1753021842576,-460.0,0.00016438,2]
[373491221,1753021842585,-460.0,0.00016438,2]
[373491223,1753021842594,-460.0,0.00016438,2]
[373491225,1753021842603,-460.0,0.00016438,2]